fUSD/lending_fUSD_20241223
["ID","MTS","AMOUNT","RATE_DAILY","PERIOD"]
[346362659,1734912643039,-500.0,0.00019178,2]
[346362660,1734912643049,-2248.91,0.00019178,2]
[346362661,1734912643060,-500.0,0.00019178,2]
[346362662,1734912643069,-657.67,0.00019178,2]
[346362663,1734912643079,-500.0,0.00019178,2]
[346362664,1734912643088,-808.12,0.00019178,2]
[346362665,1734912643099,-5037.59,0.00019178,2]
[346362666,1734912643108,-500.0,0.00019178,2]
[346362667,1734912643117,-500.0,0.00019178,2]
[346362668,1734912643126,-1526.11,0.00019178,2]
[346362669,1734912643136,-1439.39,0.00019178,2]
[346362670,1734912643145,-500.0,0.00019178,2]
[346362671,1734912643155,-617.54,0.00019178,2]
[346362672,1734912643163,-500.0,0.00019178,2]
[346362673,1734912643173,-500.0,0.00019178,2]
[346362674,1734912643182,-6319.69,0.00019178,2]
[346362675,1734912643191,-500.0,0.00019178,2]
[346362676,1734912643200,-619.07,0.00019178,2]
[346362677,1734912643209,-725.09,0.00019178,2]
[346362678,1734912643218,-500.0,0.00019178,2]
[346362679,1734912643227,-500.0,0.00019178,2]
[346362680,1734912643236,-500.0,0.00019178,2]
[346362681,1734912643246,-500.0,0.00019178,2]
[346362683,1734912643255,-500.0,0.00019178,2]
[346362684,1734912643265,-500.0,0.00019178,2]
[346362685,1734912643276,-1140.46,0.00019178,2]
[346362686,1734912643285,-500.0,0.00019178,2]
[346362687,1734912643294,-500.0,0.00019178,2]
[346362688,1734912643303,-802.82,0.00019178,2]
[346362689,1734912643313,-500.0,0.00019178,2]
[346362690,1734912643323,-588.87,0.00019178,2]
[346362691,1734912643332,-513.38,0.00019178,2]
[346362692,1734912643341,-974.15,0.00019178,2]
[346362693,1734912643350,-1387.39,0.00019178,2]
[346362695,1734912643360,-500.0,0.00019178,2]
[346362696,1734912643369,-920.71,0.00019178,2]
[346362697,1734912643379,-831.67,0.00019178,2]
[346362698,1734912643388,-500.0,0.00019178,2]
[346362699,1734912643397,-558.17,0.00019178,2]
[346362700,1734912643406,-500.0,0.00019178,2]
[346362701,1734912643416,-1197.26,0.00019178,2]
[346362702,1734912643425,-908.23,0.00019178,2]
[346362703,1734912643434,-623.1511142,0.00019178,2]
[346362704,1734912643443,-500.0,0.00019178,2]
[346362705,1734912643452,-500.0,0.00019178,2]
[346362706,1734912643462,-1634.03,0.00019178,2]
[346362707,1734912643472,-500.0,0.00019178,2]
[346362708,1734912643481,-500.0,0.00019178,2]
[346362709,1734912643490,-500.0,0.00019178,2]
[346362710,1734912643500,-1307.81,0.00019178,2]
[346362711,1734912643509,-1460.65,0.00019178,2]
[346362712,1734912643518,-500.0,0.00019178,2]
[346362713,1734912643533,-500.0,0.00019178,2]
[346362714,1734912643543,-500.0,0.00019178,2]
[346362715,1734912643552,-840.69,0.00019178,2]
[346362716,1734912643712,-500.0,0.00019178,2]
[346362717,1734912643729,-1123.22,0.00019178,2]
[346362718,1734912643738,-1396.96,0.00019178,2]
[346362719,1734912643747,-500.0,0.00019178,2]
[346362720,1734912643756,-5997.69,0.00019178,2]
[346362721,1734912643765,-500.0,0.00019178,2]
[346362722,1734912643777,-500.0,0.00019178,2]
[346362723,1734912643786,-1522.97,0.00019178,2]
[346362724,1734912643795,-4116.24,0.00019178,2]
[346362725,1734912643804,-500.0,0.00019178,2]
[346362726,1734912643813,-500.0,0.00019178,2]
[346362727,1734912643822,-500.0,0.00019178,2]
[346362728,1734912643832,-3274.36,0.00019178,2]
[346362729,1734912643841,-694.16,0.00019178,2]
[346362730,1734912643850,-1484.64,0.00019178,2]
[346362731,1734912643859,-1208.59,0.00019178,2]
[346362732,1734912643868,-500.0,0.00019178,2]
[346362733,1734912643877,-500.0,0.00019178,2]
[346362734,1734912643886,-2039.95,0.00019178,2]
[346362735,1734912643896,-500.0,0.00019178,2]
[346362736,1734912643905,-1104.54,0.00019178,2]
[346362737,1734912643914,-500.0,0.00019178,2]
[346362738,1734912643923,-500.0,0.00019178,2]
[346362739,1734912643933,-500.0,0.00019178,2]
[346362740,1734912643942,-3289.94,0.00019178,2]
[346362741,1734912643951,-500.0,0.00019178,2]
[346362742,1734912643960,-548.23,0.00019178,2]
[346362743,1734912643969,-500.0,0.00019178,2]
[346362744,1734912643979,-644.75,0.00019178,2]
[346362745,1734912643989,-500.0,0.00019178,2]
[346362746,1734912644002,-500.0,0.00019178,2]
[346362747,1734912644011,-1546.76,0.00019178,2]
[346362748,1734912644020,-500.0,0.00019178,2]
[346362749,1734912644033,-855.76,0.00019178,2]
[346362750,1734912644045,-884.64,0.00019178,2]
[346362751,1734912644054,-215.39613546,0.00019178,2]
[346362752,1734912644065,-500.0,0.00019178,2]
[346362753,1734912644075,-500.0,0.00019178,2]
[346362754,1734912644084,-1414.3,0.00019178,2]
[346362755,1734912644093,-1767.64,0.00019178,2]
[346362756,1734912644103,-500.0,0.00019178,2]
[346362757,1734912644112,-500.0,0.00019178,2]
[346362758,1734912644122,-1364.64,0.00019178,2]
[346362759,1734912644132,-500.0,0.00019178,2]
[346362760,1734912644141,-500.0,0.00019178,2]
[346362761,1734912644151,-500.0,0.00019178,2]
[346362762,1734912644160,-1787.92,0.00019178,2]
[346362763,1734912644170,-1026.37,0.00019178,2]
[346362764,1734912644179,-3081.94,0.00019178,2]
[346362765,1734912644189,-500.0,0.00019178,2]
[346362766,1734912644199,-1141.13,0.00019178,2]
[346362767,1734912644208,-585.16,0.00019178,2]
[346362768,1734912644217,-2628.75,0.00019178,2]
[346362769,1734912644227,-500.0,0.00019178,2]
[346362770,1734912644236,-500.0,0.00019178,2]
[346362771,1734912644245,-3276.76,0.00019178,2]
[346362772,1734912644255,-783.26,0.00019178,2]
[346362773,1734912644263,-500.0,0.00019178,2]
[346362774,1734912644277,-587.89,0.00019178,2]
[346362775,1734912644287,-500.0,0.00019178,2]
[346362776,1734912644297,-500.0,0.00019178,2]
[346362777,1734912644307,-500.0,0.00019178,2]
[346362778,1734912644317,-572.85,0.00019178,2]
[346362779,1734912644327,-500.0,0.00019178,2]
[346362780,1734912644336,-3129.03,0.00019178,2]
[346362781,1734912644346,-500.0,0.00019178,2]
[346362782,1734912644355,-582.90237474,0.00019178,2]
[346362783,1734912644365,-500.0,0.00019178,2]
[346362784,1734912644374,-500.0,0.00019178,2]
[346362785,1734912644384,-500.0,0.00019178,2]
[346362786,1734912644393,-5380.51,0.00019178,2]
[346362787,1734912644403,-500.0,0.00019178,2]
[346362788,1734912644413,-500.0,0.00019178,2]
[346362789,1734912644422,-731.92,0.00019178,2]
[346362790,1734912644431,-500.0,0.00019178,2]
[346362791,1734912644440,-829.64,0.00019178,2]
[346362792,1734912644450,-500.0,0.00019178,2]
[346362793,1734912644459,-3251.37,0.00019178,2]
[346362794,1734912644469,-240.53842748,0.00019178,2]
[346362795,1734912644478,-1677.91,0.00019178,2]
[346362796,1734912644487,-743.31,0.00019178,2]
[346362797,1734912644496,-500.0,0.00019178,2]
[346362798,1734912644506,-500.0,0.00019178,2]
[346362799,1734912644515,-780.77,0.00019178,2]
[346362800,1734912644526,-502.31386144,0.00019178,2]
[346362801,1734912644536,-500.0,0.00019178,2]
[346362802,1734912644545,-500.0,0.00019178,2]
[346362803,1734912644554,-500.0,0.00019178,2]
[346362804,1734912644563,-500.0,0.00019178,2]
[346362805,1734912644573,-3072.68,0.00019178,2]
[346362806,1734912644582,-500.0,0.00019178,2]
[346362807,1734912644591,-500.0,0.00019178,2]
[346362808,1734912644600,-289.6,0.00019178,2]
[346362809,1734912644610,-872.52,0.00019178,2]
[346362810,1734912644619,-500.0,0.00019178,2]
[346362811,1734912644628,-501.65215868,0.00019178,2]
[346362812,1734912644638,-7209.38,0.00019178,2]
[346362813,1734912644648,-158.27,0.00019178,2]
[346362814,1734912644657,-500.0,0.00019178,2]
[346362815,1734912644666,-500.0,0.00019178,2]
[346362816,1734912644675,-500.0,0.00019178,2]
[346362817,1734912644685,-500.0,0.00019178,2]
[346362818,1734912644694,-777.4,0.00019178,2]
[346362819,1734912644703,-1201.98,0.00019178,2]
[346362820,1734912644712,-500.0,0.00019178,2]
[346362821,1734912644722,-500.0,0.00019178,2]
[346362822,1734912644731,-991.46,0.00019178,2]
[346362823,1734912644740,-725.99,0.00019178,2]
[346362824,1734912644750,-300.0,0.00019178,2]
[346362825,1734912644760,-151.78730538,0.00019195,2]
[346362826,1734912644769,-3879.96087023,0.00019261,2]
[346362827,1734912644780,-159.50120866,0.00019284,2]
[346362828,1734912644790,-151.78730538,0.00019313,2]
[346362829,1734912644799,-2565.2,0.00019339,2]
[346362830,1734912644809,-3879.96087023,0.00019352,2]
[346362831,1734912644818,-151.78730538,0.0001943,2]
[346362832,1734912644827,-3879.96087023,0.00019443,2]
[346362833,1734912644837,-500.0,0.00019451,2]
[346362834,1734912644846,-538.73,0.00019451,2]
[346362835,1734912644855,-1111.04,0.00019451,2]
[346362836,1734912644864,-1995.32,0.00019451,2]
[346362837,1734912644873,-1258.39,0.00019451,2]
[346362838,1734912644883,-601.75,0.00019451,2]
[346362839,1734912644892,-1113.31,0.00019451,2]
[346362840,1734912644902,-1241.85,0.00019451,2]
[346362841,1734912644911,-500.0,0.00019451,2]
[346362842,1734912644920,-1104.29,0.00019451,2]
[346362843,1734912644929,-2226.53,0.00019451,2]
[346362844,1734912644939,-697.69,0.00019451,2]
[346362845,1734912644948,-3033.16,0.00019451,2]
[346362846,1734912644957,-16473.09,0.00019451,2]
[346362847,1734912644967,-619.07,0.00019451,2]
[346362848,1734912644976,-1764.05,0.00019451,2]
[346362849,1734912644986,-1060.44,0.00019451,2]
[346362850,1734912644999,-691.9,0.00019451,2]
[346362851,1734912645008,-2056.87,0.00019451,2]
[346362852,1734912645017,-12064.45,0.00019451,2]
[346362853,1734912645028,-500.0,0.00019451,2]
[346362854,1734912645038,-1197.58,0.00019451,2]
[346362855,1734912645048,-1397.66,0.00019451,2]
[346362856,1734912645057,-912.96,0.00019451,2]
[346362857,1734912645067,-2420.18,0.00019451,2]
[346362858,1734912645076,-560.5537882,0.00019451,2]
[346362859,1734912645086,-500.0,0.00019451,2]
[346362860,1734912645095,-1000.0,0.00019451,2]
[346362861,1734912645104,-972.58,0.00019451,2]
[346362862,1734912645113,-637.97,0.00019452,2]
[346362863,1734912645122,-347.01489018,0.00019452,2]
[346362864,1734912645132,-500.0,0.00019452,2]
[346362865,1734912645141,-500.0,0.00019452,2]
[346362866,1734912645151,-500.0,0.00019452,2]
[346362867,1734912645160,-301.97,0.00019452,2]
[346362868,1734912645169,-500.0,0.00019452,2]
[346362869,1734912645179,-500.0,0.00019452,2]
[346362870,1734912645188,-500.0,0.00019452,2]
[346362871,1734912645197,-500.0,0.00019452,2]
[346362872,1734912645207,-500.0,0.00019452,2]
[346362873,1734912645216,-500.0,0.00019452,2]
[346362874,1734912645226,-500.0,0.00019452,2]
[346362875,1734912645235,-500.0,0.00019452,2]
[346362876,1734912645245,-500.0,0.00019452,2]
[346362877,1734912645254,-500.0,0.00019452,2]
[346362878,1734912645263,-500.0,0.00019452,2]
[346362879,1734912645274,-500.0,0.00019452,2]
[346362880,1734912645283,-500.0,0.00019452,2]
[346362881,1734912645293,-500.0,0.00019452,2]
[346362882,1734912645302,-500.0,0.00019452,2]
[346362883,1734912645311,-500.0,0.00019452,2]
[346362884,1734912645320,-500.0,0.00019452,2]
[346362885,1734912645329,-500.0,0.00019452,2]
[346362886,1734912645338,-500.0,0.00019452,2]
[346362887,1734912645348,-500.0,0.00019452,2]
[346362888,1734912645357,-500.0,0.00019452,2]
[346362889,1734912645366,-500.0,0.00019452,2]
[346362890,1734912645375,-500.0,0.00019452,2]
[346362891,1734912645384,-237.51684601,0.00019452,2]
[346362892,1734912645393,-500.0,0.00019452,2]
[346362893,1734912645403,-500.0,0.00019452,2]
[346362894,1734912645412,-500.0,0.00019452,2]
[346362895,1734912645421,-500.0,0.00019452,2]
[346362896,1734912645431,-500.0,0.00019452,2]
[346362897,1734912645440,-591.04532582,0.00019452,2]
[346362898,1734912645449,-500.0,0.00019452,2]
[346362899,1734912645458,-500.0,0.00019452,2]
[346362900,1734912645467,-150.0,0.00019452,2]
[346362901,1734912645477,-500.0,0.00019452,2]
[346362902,1734912645486,-500.0,0.00019452,2]
[346362903,1734912645495,-500.0,0.00019452,2]
[346362904,1734912645504,-500.0,0.00019452,2]
[346362905,1734912645514,-500.0,0.00019452,2]
[346362906,1734912645524,-411.56,0.00019452,2]
[346362907,1734912645534,-2450.0402757,0.00019452,2]
[346362908,1734912645543,-500.0,0.00019452,2]
[346362909,1734912645552,-500.0,0.00019452,2]
[346362910,1734912645562,-500.0,0.00019452,2]
[346362911,1734912645571,-500.0,0.00019452,2]
[346362912,1734912645580,-500.0,0.00019452,2]
[346362913,1734912645589,-500.0,0.00019452,2]
[346362914,1734912645599,-500.0,0.00019452,2]
[346362915,1734912645608,-500.0,0.00019452,2]
[346362916,1734912645618,-500.0,0.00019452,2]
[346362917,1734912645627,-500.0,0.00019452,2]
[346362918,1734912645636,-664.5,0.00019452,2]
[346362919,1734912645645,-500.0,0.00019452,2]
[346362920,1734912645654,-500.0,0.00019452,2]
[346362921,1734912645663,-510.97230081,0.00019452,2]
[346362922,1734912645672,-500.0,0.00019452,2]
[346362923,1734912645681,-500.0,0.00019452,2]
[346362924,1734912645691,-500.0,0.00019452,2]
[346362925,1734912645700,-500.0,0.00019452,2]
[346362926,1734912645710,-500.0,0.00019452,2]
[346362927,1734912645719,-500.0,0.00019452,2]
[346362928,1734912645728,-500.0,0.00019452,2]
[346362929,1734912645738,-629.63,0.00019452,2]
[346362930,1734912645747,-500.0,0.00019452,2]
[346362931,1734912645757,-500.0,0.00019452,2]
[346362932,1734912645766,-500.0,0.00019452,2]
[346362933,1734912645775,-500.0,0.00019452,2]
[346362934,1734912645785,-500.0,0.00019452,2]
[346362935,1734912645795,-500.0,0.00019452,2]
[346362936,1734912645805,-500.0,0.00019452,2]
[346362938,1734912645815,-500.0,0.00019452,2]
[346362939,1734912645824,-500.0,0.00019452,2]
[346362940,1734912645833,-500.0,0.00019452,2]
[346362941,1734912645843,-500.0,0.00019452,2]
[346362942,1734912645851,-500.0,0.00019452,2]
[346362943,1734912645861,-231.40466317,0.00019452,2]
[346362944,1734912645870,-500.0,0.00019452,2]
[346362945,1734912645879,-500.0,0.00019452,2]
[346362946,1734912645888,-500.0,0.00019452,2]
[346362947,1734912645898,-500.0,0.00019452,2]
[346362948,1734912645907,-500.0,0.00019452,2]
[346362949,1734912645916,-500.0,0.00019452,2]
[346362950,1734912645926,-500.0,0.00019452,2]
[346362951,1734912645935,-500.0,0.00019452,2]
[346362952,1734912645944,-500.0,0.00019452,2]
[346362953,1734912645954,-500.0,0.00019452,2]
[346362954,1734912645963,-500.0,0.00019452,2]
[346362955,1734912645972,-500.0,0.00019452,2]
[346362956,1734912645981,-500.0,0.00019452,2]
[346362957,1734912645995,-500.0,0.00019452,2]
[346362958,1734912646004,-500.0,0.00019452,2]
[346362959,1734912646014,-500.0,0.00019452,2]
[346362960,1734912646023,-500.0,0.00019452,2]
[346362961,1734912646032,-500.0,0.00019452,2]
[346362962,1734912646042,-500.0,0.00019452,2]
[346362963,1734912646051,-500.0,0.00019452,2]
[346362964,1734912646106,-500.0,0.00019452,2]
[346362965,1734912646115,-500.0,0.00019452,2]
[346362966,1734912646124,-500.0,0.00019452,2]
[346362967,1734912646133,-500.0,0.00019452,2]
[346362968,1734912646142,-500.0,0.00019452,2]
[346362969,1734912646152,-500.0,0.00019452,2]
[346362970,1734912646162,-500.0,0.00019452,2]
[346362971,1734912646171,-500.0,0.00019452,2]
[346362972,1734912646180,-500.0,0.00019452,2]
[346362973,1734912646189,-500.0,0.00019452,2]
[346362974,1734912646198,-500.0,0.00019452,2]
[346362975,1734912646207,-500.0,0.00019452,2]
[346362976,1734912646216,-500.0,0.00019452,2]
[346362977,1734912646225,-500.0,0.00019452,2]
[346362978,1734912646234,-500.0,0.00019452,2]
[346362979,1734912646243,-500.0,0.00019452,2]
[346362980,1734912646252,-500.0,0.00019452,2]
[346362981,1734912646262,-500.0,0.00019452,2]
[346362982,1734912646270,-500.0,0.00019452,2]
[346362983,1734912646280,-500.0,0.00019452,2]
[346362985,1734912646290,-500.0,0.00019452,2]
[346362987,1734912646299,-500.0,0.00019452,2]
[346362989,1734912646308,-500.0,0.00019452,2]
[346362991,1734912646317,-500.0,0.00019452,2]
[346362993,1734912646326,-500.0,0.00019452,2]
[346362994,1734912646335,-500.0,0.00019452,2]
[346362996,1734912646344,-500.0,0.00019452,2]
[346362999,1734912646354,-500.0,0.00019452,2]
[346363000,1734912646363,-500.0,0.00019452,2]
[346363002,1734912646372,-500.0,0.00019452,2]
[346363004,1734912646381,-500.0,0.00019452,2]
[346363006,1734912646390,-500.0,0.00019452,2]
[346363008,1734912646399,-500.0,0.00019452,2]
[346363010,1734912646408,-500.0,0.00019452,2]
[346363012,1734912646417,-500.0,0.00019452,2]
[346363014,1734912646427,-247.84,0.00019452,2]
[346363016,1734912646436,-500.0,0.00019452,2]
[346363018,1734912646445,-500.0,0.00019452,2]
[346363020,1734912646454,-500.0,0.00019452,2]
[346363022,1734912646463,-423.52271567,0.00019452,2]
[346363024,1734912646472,-589.94,0.00019452,2]
[346363026,1734912646481,-500.0,0.00019452,2]
[346363028,1734912646490,-500.0,0.00019452,2]
[346363030,1734912646499,-500.0,0.00019452,2]
[346363032,1734912646508,-500.0,0.00019452,2]
[346363034,1734912646517,-746.63,0.00019452,2]
[346363036,1734912646526,-500.0,0.00019452,2]
[346363038,1734912646536,-500.0,0.00019452,2]
[346363040,1734912646545,-680.81,0.00019452,2]
[346363042,1734912646554,-500.0,0.00019452,2]
[346363043,1734912646564,-500.0,0.00019452,2]
[346363045,1734912646573,-303.13,0.00019452,2]
[346363047,1734912646582,-500.0,0.00019452,2]
[346363049,1734912646591,-500.0,0.00019452,2]
[346363051,1734912646600,-500.0,0.00019452,2]
[346363053,1734912646609,-500.0,0.00019452,2]
[346363055,1734912646618,-500.0,0.00019452,2]
[346363057,1734912646627,-500.0,0.00019452,2]
[346363059,1734912646636,-480.12758955,0.00019452,2]
[346363061,1734912646646,-500.0,0.00019452,2]
[346363063,1734912646655,-463.47,0.00019452,2]
[346363065,1734912646663,-500.0,0.00019452,2]
[346363067,1734912646673,-500.0,0.00019452,2]
[346363069,1734912646682,-500.0,0.00019452,2]
[346363071,1734912646691,-1200.796074,0.00019452,2]
[346363073,1734912646700,-500.0,0.00019452,2]
[346363075,1734912646709,-500.0,0.00019452,2]
[346363076,1734912646718,-500.0,0.00019452,2]
[346363077,1734912646727,-500.0,0.00019452,2]
[346363078,1734912646736,-500.0,0.00019452,2]
[346363079,1734912646745,-500.0,0.00019452,2]
[346363080,1734912646754,-1080.408207,0.00019452,2]
[346363081,1734912646763,-500.0,0.00019452,2]
[346363082,1734912646772,-500.0,0.00019452,2]
[346363083,1734912646782,-500.0,0.00019452,2]
[346363084,1734912646791,-500.0,0.00019452,2]
[346363085,1734912646801,-500.0,0.00019452,2]
[346363086,1734912646810,-500.0,0.00019452,2]
[346363087,1734912646819,-500.0,0.00019452,2]
[346363088,1734912646828,-500.0,0.00019452,2]
[346363089,1734912646837,-500.0,0.00019452,2]
[346363090,1734912646847,-500.0,0.00019452,2]
[346363091,1734912646856,-500.0,0.00019452,2]
[346363092,1734912646866,-500.0,0.00019452,2]
[346363094,1734912646875,-500.0,0.00019452,2]
[346363096,1734912646884,-500.0,0.00019452,2]
[346363098,1734912646893,-505.7,0.00019452,2]
[346363100,1734912646902,-784.97,0.00019452,2]
[346363102,1734912646911,-500.0,0.00019452,2]
[346363104,1734912646920,-500.0,0.00019452,2]
[346363106,1734912646929,-500.0,0.00019452,2]
[346363108,1734912646938,-662.1,0.00019452,2]
[346363110,1734912646948,-500.0,0.00019452,2]
[346363112,1734912646957,-500.0,0.00019452,2]
[346363114,1734912646966,-500.0,0.00019452,2]
[346363116,1734912646975,-500.0,0.00019452,2]
[346363119,1734912646994,-500.0,0.00019452,2]
[346363121,1734912647004,-597.91,0.00019452,2]
[346363123,1734912647012,-500.0,0.00019452,2]
[346363125,1734912647021,-500.0,0.00019452,2]
[346363127,1734912647033,-500.0,0.00019452,2]
[346363128,1734912647042,-500.0,0.00019452,2]
[346363131,1734912647052,-500.0,0.00019452,2]
[346363133,1734912647061,-683.18,0.00019452,2]
[346363135,1734912647070,-913.51,0.00019452,2]
[346363136,1734912647079,-500.0,0.00019452,2]
[346363138,1734912647088,-500.0,0.00019452,2]
[346363140,1734912647097,-841.44,0.00019452,2]
[346363142,1734912647106,-500.0,0.00019452,2]
[346363144,1734912647115,-500.0,0.00019452,2]
[346363146,1734912647124,-500.0,0.00019452,2]
[346363148,1734912647134,-772.56,0.00019452,2]
[346363150,1734912647143,-500.0,0.00019452,2]
[346363152,1734912647151,-500.0,0.00019452,2]
[346363154,1734912647160,-500.0,0.00019452,2]
[346363156,1734912647169,-500.0,0.00019452,2]
[346363158,1734912647178,-500.0,0.00019452,2]
[346363160,1734912647188,-500.0,0.00019452,2]
[346363162,1734912647197,-500.0,0.00019452,2]
[346363164,1734912647206,-500.0,0.00019452,2]
[346363166,1734912647215,-500.0,0.00019452,2]
[346363168,1734912647223,-500.0,0.00019452,2]
[346363170,1734912647233,-500.0,0.00019452,2]
[346363172,1734912647243,-500.0,0.00019452,2]
[346363174,1734912647251,-500.0,0.00019452,2]
[346363176,1734912647260,-497.91108627,0.00019452,2]
[346363178,1734912647269,-500.0,0.00019452,2]
[346363180,1734912647284,-500.0,0.00019452,2]
[346363182,1734912647294,-500.0,0.00019452,2]
[346363184,1734912647308,-500.0,0.00019452,2]
[346363186,1734912647317,-500.0,0.00019452,2]
[346363188,1734912647326,-500.0,0.00019452,2]
[346363190,1734912647335,-500.0,0.00019452,2]
[346363192,1734912647344,-500.0,0.00019452,2]
[346363194,1734912647353,-500.0,0.00019452,2]
[346363196,1734912647362,-500.0,0.00019452,2]
[346363198,1734912647371,-500.0,0.00019452,2]
[346363200,1734912647380,-500.0,0.00019452,2]
[346363202,1734912647390,-690.41,0.00019452,2]
[346363204,1734912647399,-549.47,0.00019452,2]
[346363206,1734912647408,-796.25,0.00019452,2]
[346363208,1734912647416,-500.0,0.00019452,2]
[346363210,1734912647425,-500.0,0.00019452,2]
[346363212,1734912647434,-500.0,0.00019452,2]
[346363214,1734912647443,-500.0,0.00019452,2]
[346363216,1734912647452,-500.0,0.00019452,2]
[346363217,1734912647462,-500.0,0.00019452,2]
[346363219,1734912647471,-500.0,0.00019452,2]
[346363221,1734912647480,-536.68,0.00019452,2]
[346363223,1734912647489,-500.0,0.00019452,2]
[346363225,1734912647498,-500.0,0.00019452,2]
[346363227,1734912647507,-500.0,0.00019452,2]
[346363229,1734912647515,-500.0,0.00019452,2]
[346363231,1734912647524,-696.23,0.00019452,2]
[346363233,1734912647537,-500.0,0.00019452,2]
[346363235,1734912647547,-621.71,0.00019452,2]
[346363237,1734912647556,-500.0,0.00019452,2]
[346363239,1734912647565,-500.0,0.00019452,2]
[346363241,1734912647574,-500.0,0.00019452,2]
[346363243,1734912647583,-604.17,0.00019452,2]
[346363245,1734912647592,-500.0,0.00019452,2]
[346363247,1734912647602,-500.0,0.00019452,2]
[346363249,1734912647611,-516.04,0.00019452,2]
[346363250,1734912647620,-500.0,0.00019452,2]
[346363251,1734912647629,-500.0,0.00019452,2]
[346363252,1734912647638,-500.0,0.00019452,2]
[346363253,1734912647647,-500.0,0.00019452,2]
[346363254,1734912647657,-720.96,0.00019452,2]
[346363255,1734912647667,-500.0,0.00019452,2]
[346363256,1734912647676,-500.0,0.00019452,2]
[346363257,1734912647685,-500.0,0.00019452,2]
[346363258,1734912647694,-500.0,0.00019452,2]
[346363259,1734912647703,-1032.87,0.00019452,2]
[346363260,1734912647712,-500.0,0.00019452,2]
[346363261,1734912647721,-656.44,0.00019452,2]
[346363262,1734912647730,-500.0,0.00019452,2]
[346363263,1734912647739,-500.0,0.00019452,2]
[346363264,1734912647748,-500.0,0.00019452,2]
[346363266,1734912647757,-728.41,0.00019452,2]
[346363268,1734912647766,-500.0,0.00019452,2]
[346363270,1734912647775,-500.0,0.00019452,2]
[346363272,1734912647786,-500.0,0.00019452,2]
[346363274,1734912647796,-500.0,0.00019452,2]
[346363276,1734912647805,-809.34,0.00019452,2]
[346363278,1734912647814,-500.0,0.00019452,2]
[346363280,1734912647823,-1385.84,0.00019452,2]
[346363282,1734912647832,-500.0,0.00019452,2]
[346363284,1734912647842,-500.0,0.00019452,2]
[346363286,1734912647853,-887.35,0.00019452,2]
[346363288,1734912647863,-500.0,0.00019452,2]
[346363290,1734912647873,-607.17,0.00019452,2]
[346363292,1734912647882,-881.18,0.00019452,2]
[346363294,1734912647892,-500.0,0.00019452,2]
[346363296,1734912647902,-737.69,0.00019452,2]
[346363298,1734912647912,-500.0,0.00019452,2]
[346363300,1734912647922,-500.0,0.00019452,2]
[346363302,1734912647932,-341.38510814,0.00019452,2]
[346363304,1734912647942,-1204.09,0.00019452,2]